[Event "Titled Tuesday Blitz February 15 Early 2022"]
[White "Eggleston, Thomas A"]
[Black "Pourkashiyan, Atousa"]
[WhiteFideId "412139"]
[BlackFideId "12502014"]
[WhiteElo "2174"]
[BlackElo "2247"]
[Result "0-1"]
[Round "03"]
[TimeControl "180+1"]
[Date "2022.02.15"]
[WhiteClock "0:00:05"]
[BlackClock "0:00:17"]

1. e4 {[%clk 0:02:57]}  c5 {[%clk 0:02:58]} 2. b3 {[%clk 0:02:51]}  e6 {[%clk 0:02:57]} 3. Bb2 {[%clk 0:02:50]}  Nc6 {[%clk 0:02:48]} 4. f4 {[%clk 0:02:49]}  d5 {[%clk 0:02:46]} 5. e5 {[%clk 0:02:48]}  h5 {[%clk 0:02:41]} 6. Nc3 {[%clk 0:02:43]}  Nh6 {[%clk 0:02:40]} 7. Bb5 {[%clk 0:02:35]}  Bd7 {[%clk 0:02:40]} 8. Nh3 {[%clk 0:02:30]}  Nf5 {[%clk 0:02:24]} 9. Nf2 {[%clk 0:02:21]}  d4 {[%clk 0:02:17]} 10. Nce4 {[%clk 0:02:19]}  Nxe5 {[%clk 0:02:17]} 11. fxe5 {[%clk 0:02:01]}  Bxb5 {[%clk 0:02:09]} 12. a4 {[%clk 0:02:00]}  Bc6 {[%clk 0:02:05]} 13. Qe2 {[%clk 0:01:51]}  Be7 {[%clk 0:02:03]} 14. O-O {[%clk 0:01:36]}  h4 {[%clk 0:01:41]} 15. Nd3 {[%clk 0:01:35]}  Qd5 {[%clk 0:01:16]} 16. Rf4 {[%clk 0:01:16]}  h3 {[%clk 0:01:13]} 17. g4 {[%clk 0:01:11]}  Bg5 {[%clk 0:01:11]} 18. Nxg5 {[%clk 0:00:31]}  Qh1+ {[%clk 0:01:04]} 19. Kf2 {[%clk 0:00:31]}  Qxh2+ {[%clk 0:00:44]} 20. Ke1 {[%clk 0:00:31]}  Qg3+ {[%clk 0:00:18]} 21. Qf2 {[%clk 0:00:20]}  h2 {[%clk 0:00:19]} 22. Ke2 {[%clk 0:00:17]}  h1=Q {[%clk 0:00:17]} 23. Rxh1 {[%clk 0:00:16]}  Rxh1 {[%clk 0:00:18]} 24. Qxg3 {[%clk 0:00:09]}  Nxg3+ {[%clk 0:00:19]} 25. Kf2 {[%clk 0:00:09]}  Nf1 {[%clk 0:00:20]} 26. Nxf7 {[%clk 0:00:08]}  Nxd2 {[%clk 0:00:19]} 27. Nd6+ {[%clk 0:00:07]}  Ke7 {[%clk 0:00:18]} 28. Rf7+ {[%clk 0:00:07]}  Kd8 {[%clk 0:00:18]} 29. Nxc5 {[%clk 0:00:06]}  Rf1+ {[%clk 0:00:16]} 30. Kg3 {[%clk 0:00:05]}  Rxf7 {[%clk 0:00:16]} 31. Nxf7+ {[%clk 0:00:05]}  Ke7 {[%clk 0:00:17]} 32. Nd6 {[%clk 0:00:04]}  b6 {[%clk 0:00:17]} 33. Nd3 {[%clk 0:00:04]}  Ne4+ {[%clk 0:00:17]} 34. Nxe4 {[%clk 0:00:03]}  Bxe4 {[%clk 0:00:18]} 35. Kf4 {[%clk 0:00:03]}  Bxd3 {[%clk 0:00:18]} 36. cxd3 {[%clk 0:00:03]}  Rd8 {[%clk 0:00:18]} 37. Ke4 {[%clk 0:00:04]}  g6 {[%clk 0:00:17]} 38. Bxd4 {[%clk 0:00:04]}  Rc8 {[%clk 0:00:18]} 39. Be3 {[%clk 0:00:02]}  Rc2 {[%clk 0:00:17]} 40. Bg5+ {[%clk 0:00:03]}  Kd7 {[%clk 0:00:17]} 41. Bf6 {[%clk 0:00:03]}  Rb2 {[%clk 0:00:16]} 42. Kf4 {[%clk 0:00:03]}  Rxb3 {[%clk 0:00:16]} 43. Kg5 {[%clk 0:00:03]}  Rxd3 {[%clk 0:00:16]} 44. Kxg6 {[%clk 0:00:04]}  Rd4 {[%clk 0:00:16]} 45. g5 {[%clk 0:00:04]}  Rxa4 {[%clk 0:00:17]} 46. Kf7 {[%clk 0:00:04]}  Rg4 {[%clk 0:00:16]} 47. g6 {[%clk 0:00:05]}  b5 {[%clk 0:00:16]} 48. g7 {[%clk 0:00:05]}  b4 {[%clk 0:00:17]} 49. g8=Q {[%clk 0:00:05]}  Rxg8 {[%clk 0:00:16]} 50. Kxg8 {[%clk 0:00:05]}  b3 {[%clk 0:00:17]} 0-1


[Site "https://www.chess.com"]

[Event "Titled Tuesday Blitz February 15 Early 2022"]
[White "Gan-Erdene, Sugar"]
[Black "Loy, Konstantin"]
[WhiteFideId "4902980"]
[BlackFideId "14122499"]
[WhiteElo "2256"]
[BlackElo "2084"]
[Result "1-0"]
[Round "03"]
[TimeControl "180+1"]
[Date "2022.02.15"]
[WhiteClock "0:01:49"]
[BlackClock "0:00:04"]

1. e4 {[%clk 0:02:59]}  c5 {[%clk 0:02:59]} 2. Nf3 {[%clk 0:02:59]}  d6 {[%clk 0:02:58]} 3. d4 {[%clk 0:03:00]}  cxd4 {[%clk 0:02:59]} 4. Nxd4 {[%clk 0:03:01]}  Nf6 {[%clk 0:02:59]} 5. Nc3 {[%clk 0:03:01]}  g6 {[%clk 0:02:59]} 6. Be3 {[%clk 0:03:01]}  Bg7 {[%clk 0:02:59]} 7. Be2 {[%clk 0:03:02]}  O-O {[%clk 0:02:59]} 8. O-O {[%clk 0:03:02]}  Nc6 {[%clk 0:02:59]} 9. f4 {[%clk 0:03:03]}  Qa5 {[%clk 0:02:55]} 10. Nb3 {[%clk 0:03:02]}  Qd8 {[%clk 0:02:48]} 11. Bf3 {[%clk 0:03:02]}  Be6 {[%clk 0:02:45]} 12. Qd2 {[%clk 0:02:58]}  Rc8 {[%clk 0:02:41]} 13. Rad1 {[%clk 0:02:56]}  Na5 {[%clk 0:02:32]} 14. Nxa5 {[%clk 0:02:55]}  Qxa5 {[%clk 0:02:31]} 15. Nd5 {[%clk 0:02:51]}  Qd8 {[%clk 0:02:30]} 16. b3 {[%clk 0:02:42]}  Bxd5 {[%clk 0:02:21]} 17. exd5 {[%clk 0:02:41]}  a6 {[%clk 0:02:17]} 18. c4 {[%clk 0:02:41]}  b5 {[%clk 0:02:14]} 19. cxb5 {[%clk 0:02:40]}  axb5 {[%clk 0:02:14]} 20. Rc1 {[%clk 0:02:41]}  Qd7 {[%clk 0:02:09]} 21. Rc6 {[%clk 0:02:40]}  Ng4 {[%clk 0:01:24]} 22. Bd4 {[%clk 0:02:34]}  Bxd4+ {[%clk 0:01:23]} 23. Qxd4 {[%clk 0:02:35]}  Nf6 {[%clk 0:01:21]} 24. Rfc1 {[%clk 0:02:35]}  Ra8 {[%clk 0:01:18]} 25. Rc7 {[%clk 0:02:30]}  Qf5 {[%clk 0:01:08]} 26. a4 {[%clk 0:02:26]}  bxa4 {[%clk 0:01:07]} 27. bxa4 {[%clk 0:02:26]}  Ra5 {[%clk 0:00:41]} 28. Rxe7 {[%clk 0:02:24]}  Nxd5 {[%clk 0:00:37]} 29. Re4 {[%clk 0:02:18]}  Nf6 {[%clk 0:00:24]} 30. Ree1 {[%clk 0:02:12]}  d5 {[%clk 0:00:18]} 31. h3 {[%clk 0:02:06]}  h5 {[%clk 0:00:17]} 32. Re5 {[%clk 0:02:06]}  Qd7 {[%clk 0:00:11]} 33. f5 {[%clk 0:01:58]}  Qxa4 {[%clk 0:00:09]} 34. Qe3 {[%clk 0:01:54]}  Qa3 {[%clk 0:00:05]} 35. Qg5 {[%clk 0:01:49]}  Nh7 {[%clk 0:00:04]} 36. Qh6 {[%clk 0:01:49]} 1-0


[Site "https://www.chess.com"]

[Event "Titled Tuesday Blitz February 15 Early 2022"]
[White "Glidzhain, Gor"]
[Black "Tsydypov, Zhamsaran"]
[WhiteFideId "24109932"]
[BlackFideId "4108566"]
[WhiteElo "2229"]
[BlackElo "2614"]
[Result "0-1"]
[Round "03"]
[TimeControl "180+1"]
[Date "2022.02.15"]
[WhiteClock "0:00:13"]
[BlackClock "0:01:44"]

1. e4 {[%clk 0:02:59]}  c5 {[%clk 0:02:56]} 2. Nf3 {[%clk 0:02:58]}  e6 {[%clk 0:02:57]} 3. c3 {[%clk 0:02:58]}  Nf6 {[%clk 0:02:52]} 4. e5 {[%clk 0:02:58]}  Nd5 {[%clk 0:02:52]} 5. d4 {[%clk 0:02:59]}  cxd4 {[%clk 0:02:53]} 6. cxd4 {[%clk 0:03:00]}  b6 {[%clk 0:02:53]} 7. Nc3 {[%clk 0:03:00]}  Nxc3 {[%clk 0:02:53]} 8. bxc3 {[%clk 0:03:01]}  Bb7 {[%clk 0:02:53]} 9. Bd3 {[%clk 0:03:01]}  Be7 {[%clk 0:02:54]} 10. O-O {[%clk 0:03:01]}  d6 {[%clk 0:02:54]} 11. Bf4 {[%clk 0:03:01]}  O-O {[%clk 0:02:47]} 12. Re1 {[%clk 0:03:00]}  h6 {[%clk 0:02:41]} 13. exd6 {[%clk 0:02:48]}  Bxd6 {[%clk 0:02:41]} 14. Ne5 {[%clk 0:02:49]}  Nc6 {[%clk 0:02:32]} 15. Qg4 {[%clk 0:02:42]}  Bxe5 {[%clk 0:02:26]} 16. Bxe5 {[%clk 0:02:37]}  Nxe5 {[%clk 0:02:26]} 17. Rxe5 {[%clk 0:02:38]}  Rc8 {[%clk 0:02:23]} 18. c4 {[%clk 0:02:21]}  Qd6 {[%clk 0:02:18]} 19. Rae1 {[%clk 0:02:18]}  Rfd8 {[%clk 0:02:14]} 20. d5 {[%clk 0:01:50]}  exd5 {[%clk 0:02:06]} 21. Re7 {[%clk 0:00:59]}  dxc4 {[%clk 0:01:58]} 22. Bf5 {[%clk 0:00:26]}  Rb8 {[%clk 0:01:51]} 23. h4 {[%clk 0:00:13]}  Qf6 {[%clk 0:01:44]} 0-1


[Site "https://www.chess.com"]

[Event "Titled Tuesday Blitz February 15 Early 2022"]
[White "Grischuk, Alexander"]
[Black "Vovk, Orest"]
[WhiteFideId "4126025"]
[BlackFideId "14113490"]
[WhiteElo "2762"]
[BlackElo "2203"]
[Result "1-0"]
[Round "03"]
[TimeControl "180+1"]
[Date "2022.02.15"]
[WhiteClock "0:00:13"]
[BlackClock "0:00:02"]

1. e4 {[%clk 0:02:04]}  g5 {[%clk 0:02:56]} 2. d4 {[%clk 0:02:04]}  h6 {[%clk 0:02:56]} 3. h4 {[%clk 0:02:03]}  g4 {[%clk 0:02:56]} 4. Nc3 {[%clk 0:01:59]}  Bg7 {[%clk 0:02:56]} 5. Be3 {[%clk 0:01:58]}  d6 {[%clk 0:02:54]} 6. Bc4 {[%clk 0:01:58]}  c6 {[%clk 0:02:52]} 7. a4 {[%clk 0:01:47]}  Qa5 {[%clk 0:02:50]} 8. Ne2 {[%clk 0:01:46]}  Nd7 {[%clk 0:02:32]} 9. Ng3 {[%clk 0:01:32]}  Nf8 {[%clk 0:02:32]} 10. Qd2 {[%clk 0:01:26]}  Be6 {[%clk 0:02:24]} 11. Bxe6 {[%clk 0:01:25]}  Nxe6 {[%clk 0:02:21]} 12. Nf5 {[%clk 0:01:25]}  Bf8 {[%clk 0:01:59]} 13. O-O-O {[%clk 0:01:03]}  b5 {[%clk 0:01:08]} 14. axb5 {[%clk 0:01:02]}  cxb5 {[%clk 0:01:01]} 15. Kb1 {[%clk 0:01:01]}  Nf6 {[%clk 0:00:51]} 16. Nd5 {[%clk 0:00:55]}  Qxd2 {[%clk 0:00:48]} 17. Nxf6+ {[%clk 0:00:48]}  exf6 {[%clk 0:00:49]} 18. Rxd2 {[%clk 0:00:48]}  h5 {[%clk 0:00:44]} 19. d5 {[%clk 0:00:47]}  Ng7 {[%clk 0:00:41]} 20. Nd4 {[%clk 0:00:46]}  a6 {[%clk 0:00:37]} 21. c4 {[%clk 0:00:46]}  bxc4 {[%clk 0:00:33]} 22. Rc1 {[%clk 0:00:46]}  Be7 {[%clk 0:00:28]} 23. Nc6 {[%clk 0:00:42]}  f5 {[%clk 0:00:20]} 24. Bd4 {[%clk 0:00:42]}  Rg8 {[%clk 0:00:20]} 25. Nxe7 {[%clk 0:00:36]}  Kxe7 {[%clk 0:00:20]} 26. Rxc4 {[%clk 0:00:37]}  Ne8 {[%clk 0:00:13]} 27. exf5 {[%clk 0:00:36]}  Kd7 {[%clk 0:00:12]} 28. Rdc2 {[%clk 0:00:29]}  Rb8 {[%clk 0:00:10]} 29. Rc6 {[%clk 0:00:27]}  Rb7 {[%clk 0:00:09]} 30. Rb6 {[%clk 0:00:21]}  Rxb6 {[%clk 0:00:06]} 31. Bxb6 {[%clk 0:00:22]}  g3 {[%clk 0:00:04]} 32. f3 {[%clk 0:00:21]}  f6 {[%clk 0:00:04]} 33. Ka2 {[%clk 0:00:20]}  Rg7 {[%clk 0:00:04]} 34. Re2 {[%clk 0:00:17]}  Re7 {[%clk 0:00:04]} 35. Re6 {[%clk 0:00:16]}  Ng7 {[%clk 0:00:03]} 36. Rxf6 {[%clk 0:00:16]}  Re5 {[%clk 0:00:01]} 37. Rf7+ {[%clk 0:00:16]}  Re7 {[%clk 0:00:02]} 38. Rf8 {[%clk 0:00:14]}  Re5 {[%clk 0:00:01]} 39. f6 {[%clk 0:00:13]}  Nf5 {[%clk 0:00:02]} 40. Rd8# {[%clk 0:00:13]} 1-0


[Site "https://www.chess.com"]

[Event "Titled Tuesday Blitz February 15 Early 2022"]
[White "Guliyev, Namig"]
[Black "Mamedyarov, Shakhriyar"]
[WhiteFideId "13400363"]
[BlackFideId "13401319"]
[WhiteElo "2487"]
[BlackElo "2769"]
[Result "0-1"]
[Round "03"]
[TimeControl "180+1"]
[Date "2022.02.15"]
[WhiteClock "0:00:03"]
[BlackClock "0:00:08"]

1. e4 {[%clk 0:03:00]}  c5 {[%clk 0:03:00]} 2. Nf3 {[%clk 0:03:00]}  d6 {[%clk 0:03:00]} 3. Bb5+ {[%clk 0:03:00]}  Nd7 {[%clk 0:02:56]} 4. d4 {[%clk 0:02:59]}  Nf6 {[%clk 0:02:53]} 5. Nc3 {[%clk 0:02:58]}  cxd4 {[%clk 0:02:54]} 6. Qxd4 {[%clk 0:02:58]}  e5 {[%clk 0:02:54]} 7. Qd3 {[%clk 0:02:55]}  h6 {[%clk 0:02:53]} 8. Nd2 {[%clk 0:02:52]}  a6 {[%clk 0:02:52]} 9. Bxd7+ {[%clk 0:02:52]}  Bxd7 {[%clk 0:02:47]} 10. Nc4 {[%clk 0:02:52]}  Be6 {[%clk 0:02:48]} 11. Ne3 {[%clk 0:02:25]}  Rc8 {[%clk 0:02:47]} 12. O-O {[%clk 0:02:25]}  Be7 {[%clk 0:02:34]} 13. a4 {[%clk 0:02:24]}  Rc5 {[%clk 0:02:23]} 14. b4 {[%clk 0:02:04]}  Rxc3 {[%clk 0:01:15]} 15. Qxc3 {[%clk 0:02:04]}  Nxe4 {[%clk 0:01:16]} 16. Qd3 {[%clk 0:01:54]}  Nf6 {[%clk 0:00:42]} 17. c4 {[%clk 0:01:52]}  O-O {[%clk 0:00:39]} 18. Rd1 {[%clk 0:01:33]}  Qc8 {[%clk 0:00:30]} 19. Ba3 {[%clk 0:01:26]}  Nh5 {[%clk 0:00:30]} 20. b5 {[%clk 0:01:21]}  Nf4 {[%clk 0:00:29]} 21. Qb3 {[%clk 0:01:06]}  Ne2+ {[%clk 0:00:22]} 22. Kf1 {[%clk 0:01:03]}  Nd4 {[%clk 0:00:22]} 23. Qd3 {[%clk 0:00:52]}  f5 {[%clk 0:00:21]} 24. Rac1 {[%clk 0:00:37]}  Bg5 {[%clk 0:00:19]} 25. c5 {[%clk 0:00:35]}  f4 {[%clk 0:00:18]} 26. Nc4 {[%clk 0:00:27]}  Bf5 {[%clk 0:00:16]} 27. Qc3 {[%clk 0:00:22]}  f3 {[%clk 0:00:15]} 28. Nxd6 {[%clk 0:00:20]}  fxg2+ {[%clk 0:00:15]} 29. Kxg2 {[%clk 0:00:18]}  Bh3+ {[%clk 0:00:15]} 30. Kh1 {[%clk 0:00:14]}  Qg4 {[%clk 0:00:12]} 31. Rg1 {[%clk 0:00:12]}  Qh5 {[%clk 0:00:10]} 32. Qc4+ {[%clk 0:00:09]}  Kh8 {[%clk 0:00:09]} 33. Qd5 {[%clk 0:00:10]}  Rxf2 {[%clk 0:00:09]} 34. c6 {[%clk 0:00:06]}  Nf3 {[%clk 0:00:08]} 35. Nf7+ {[%clk 0:00:03]}  Qxf7 {[%clk 0:00:08]} 0-1


[Site "https://www.chess.com"]

[Event "Titled Tuesday Blitz February 15 Early 2022"]
[White "Guz, Ari"]
[Black "Shton, Roman"]
[WhiteFideId "2825759"]
[BlackFideId "14137461"]
[WhiteElo "1913"]
[BlackElo "2038"]
[Result "1-0"]
[Round "03"]
[TimeControl "180+1"]
[Date "2022.02.15"]
[WhiteClock "0:01:47"]
[BlackClock "0:00:05"]

1. b3 {[%clk 0:03:00]}  e5 {[%clk 0:02:57]} 2. Bb2 {[%clk 0:03:01]}  Nc6 {[%clk 0:02:58]} 3. g3 {[%clk 0:03:00]}  g6 {[%clk 0:02:56]} 4. Bg2 {[%clk 0:03:01]}  Bg7 {[%clk 0:02:57]} 5. d3 {[%clk 0:03:00]}  d6 {[%clk 0:02:58]} 6. Nf3 {[%clk 0:03:00]}  f5 {[%clk 0:02:58]} 7. O-O {[%clk 0:03:00]}  Nf6 {[%clk 0:02:59]} 8. e4 {[%clk 0:03:00]}  fxe4 {[%clk 0:02:53]} 9. dxe4 {[%clk 0:03:00]}  Nxe4 {[%clk 0:02:54]} 10. c4 {[%clk 0:02:58]}  Nf6 {[%clk 0:02:50]} 11. Nc3 {[%clk 0:02:57]}  O-O {[%clk 0:02:49]} 12. Ng5 {[%clk 0:02:54]}  Kh8 {[%clk 0:02:43]} 13. Qd2 {[%clk 0:02:44]}  Ng4 {[%clk 0:02:15]} 14. h3 {[%clk 0:02:36]}  Bh6 {[%clk 0:02:08]} 15. Nce4 {[%clk 0:02:28]}  Nf6 {[%clk 0:01:55]} 16. Nxf6 {[%clk 0:02:29]}  Qxf6 {[%clk 0:01:51]} 17. f4 {[%clk 0:02:29]}  Bf5 {[%clk 0:01:04]} 18. g4 {[%clk 0:02:27]}  Bd7 {[%clk 0:00:55]} 19. fxe5 {[%clk 0:02:05]}  Qxg5 {[%clk 0:00:55]} 20. Qxg5 {[%clk 0:02:05]}  Bxg5 {[%clk 0:00:54]} 21. e6+ {[%clk 0:02:06]}  Ne5 {[%clk 0:00:48]} 22. exd7 {[%clk 0:02:06]}  Be3+ {[%clk 0:00:28]} 23. Kh1 {[%clk 0:02:06]}  Rad8 {[%clk 0:00:18]} 24. Bxb7 {[%clk 0:02:03]}  Rxf1+ {[%clk 0:00:18]} 25. Rxf1 {[%clk 0:02:02]}  Rxd7 {[%clk 0:00:18]} 26. Bd5 {[%clk 0:01:55]}  Rd8 {[%clk 0:00:17]} 27. Rf7 {[%clk 0:01:55]}  c6 {[%clk 0:00:15]} 28. Bxc6 {[%clk 0:01:56]}  a5 {[%clk 0:00:11]} 29. Bd5 {[%clk 0:01:52]}  Rb8 {[%clk 0:00:05]} 30. Re7 {[%clk 0:01:51]}  Bf4 {[%clk 0:00:04]} 31. c5 {[%clk 0:01:50]}  a4 {[%clk 0:00:03]} 32. cxd6 {[%clk 0:01:49]}  axb3 {[%clk 0:00:04]} 33. Rxe5 {[%clk 0:01:47]}  Bxe5 {[%clk 0:00:05]} 34. Bxe5# {[%clk 0:01:47]} 1-0


[Site "https://www.chess.com"]

[Event "Titled Tuesday Blitz February 15 Early 2022"]
[White "Hamley, Ryan"]
[Black "Zavivaeva, Emilia"]
[WhiteFideId "30959497"]
[BlackFideId "34127531"]
[WhiteElo "2391"]
[BlackElo "1685"]
[Result "1-0"]
[Round "03"]
[TimeControl "180+1"]
[Date "2022.02.15"]
[WhiteClock "0:01:24"]
[BlackClock "0:00:01"]

1. e4 {[%clk 0:02:59]}  d5 {[%clk 0:02:54]} 2. exd5 {[%clk 0:02:59]}  Qxd5 {[%clk 0:02:54]} 3. Nc3 {[%clk 0:02:59]}  Qa5 {[%clk 0:02:53]} 4. d4 {[%clk 0:02:58]}  c6 {[%clk 0:02:47]} 5. Nf3 {[%clk 0:02:58]}  Bf5 {[%clk 0:02:47]} 6. Ne5 {[%clk 0:02:56]}  Nf6 {[%clk 0:02:42]} 7. Be2 {[%clk 0:02:54]}  e6 {[%clk 0:02:42]} 8. O-O {[%clk 0:02:53]}  Bb4 {[%clk 0:02:41]} 9. Bd2 {[%clk 0:02:51]}  O-O {[%clk 0:02:41]} 10. a3 {[%clk 0:02:50]}  Bxc3 {[%clk 0:01:53]} 11. Bxc3 {[%clk 0:02:49]}  Qc7 {[%clk 0:01:52]} 12. Bf3 {[%clk 0:02:37]}  Nbd7 {[%clk 0:01:50]} 13. Nc4 {[%clk 0:02:34]}  Nd5 {[%clk 0:01:49]} 14. Bd2 {[%clk 0:02:32]}  b5 {[%clk 0:01:44]} 15. Ne3 {[%clk 0:02:31]}  Bg6 {[%clk 0:01:43]} 16. c3 {[%clk 0:02:28]}  N7f6 {[%clk 0:01:41]} 17. a4 {[%clk 0:02:27]}  b4 {[%clk 0:01:38]} 18. cxb4 {[%clk 0:02:25]}  Rab8 {[%clk 0:01:35]} 19. Rc1 {[%clk 0:02:21]}  Rfd8 {[%clk 0:01:15]} 20. b5 {[%clk 0:02:16]}  Rd6 {[%clk 0:00:55]} 21. Nc4 {[%clk 0:02:05]}  Rdd8 {[%clk 0:00:44]} 22. Ne5 {[%clk 0:02:03]}  Ne7 {[%clk 0:00:22]} 23. Nxc6 {[%clk 0:01:46]}  Nxc6 {[%clk 0:00:19]} 24. Rxc6 {[%clk 0:01:47]}  Qd7 {[%clk 0:00:13]} 25. Bf4 {[%clk 0:01:44]}  Rbc8 {[%clk 0:00:09]} 26. Be5 {[%clk 0:01:43]}  Nd5 {[%clk 0:00:03]} 27. Qc1 {[%clk 0:01:32]}  Rxc6 {[%clk 0:00:03]} 28. bxc6 {[%clk 0:01:32]}  Qe7 {[%clk 0:00:02]} 29. Qc4 {[%clk 0:01:26]}  Rc8 {[%clk 0:00:02]} 30. Qa6 {[%clk 0:01:25]}  Nb6 {[%clk 0:00:01]} 31. a5 {[%clk 0:01:24]} 1-0


[Site "https://www.chess.com"]

[Event "Titled Tuesday Blitz February 15 Early 2022"]
[White "Hansen, Eric"]
[Black "Kuzmin, Roman"]
[WhiteFideId "2606771"]
[BlackFideId "44134932"]
[WhiteElo "2568"]
[BlackElo "1978"]
[Result "1-0"]
[Round "03"]
[TimeControl "180+1"]
[Date "2022.02.15"]
[WhiteClock "0:00:06"]
[BlackClock "0:00:05"]

1. e4 {[%clk 0:03:00]}  c5 {[%clk 0:02:59]} 2. Nf3 {[%clk 0:02:54]}  d6 {[%clk 0:02:59]} 3. Bb5+ {[%clk 0:02:50]}  Bd7 {[%clk 0:02:59]} 4. Bxd7+ {[%clk 0:02:46]}  Qxd7 {[%clk 0:02:59]} 5. c4 {[%clk 0:02:47]}  Nc6 {[%clk 0:02:58]} 6. d4 {[%clk 0:02:46]}  cxd4 {[%clk 0:02:56]} 7. Nxd4 {[%clk 0:02:47]}  g6 {[%clk 0:02:56]} 8. Nc3 {[%clk 0:02:47]}  Bg7 {[%clk 0:02:57]} 9. Be3 {[%clk 0:02:46]}  Nf6 {[%clk 0:02:45]} 10. f3 {[%clk 0:02:43]}  O-O {[%clk 0:02:37]} 11. Nde2 {[%clk 0:02:38]}  a6 {[%clk 0:02:31]} 12. a4 {[%clk 0:02:38]}  Rac8 {[%clk 0:02:22]} 13. O-O {[%clk 0:02:38]}  Rfd8 {[%clk 0:02:21]} 14. Kh1 {[%clk 0:02:37]}  e6 {[%clk 0:02:17]} 15. Bb6 {[%clk 0:02:31]}  Re8 {[%clk 0:02:16]} 16. b3 {[%clk 0:02:29]}  Ne7 {[%clk 0:02:09]} 17. Bd4 {[%clk 0:02:25]}  Nc6 {[%clk 0:02:02]} 18. Bg1 {[%clk 0:02:20]}  d5 {[%clk 0:01:52]} 19. Rc1 {[%clk 0:02:17]}  dxc4 {[%clk 0:01:46]} 20. bxc4 {[%clk 0:01:50]}  Ne5 {[%clk 0:01:37]} 21. c5 {[%clk 0:01:51]}  Red8 {[%clk 0:01:31]} 22. Qb3 {[%clk 0:01:49]}  Nd3 {[%clk 0:01:28]} 23. Rcd1 {[%clk 0:01:49]}  Qc7 {[%clk 0:01:12]} 24. Qc4 {[%clk 0:01:35]}  Ne5 {[%clk 0:01:03]} 25. Qb3 {[%clk 0:01:32]}  Nfd7 {[%clk 0:01:02]} 26. f4 {[%clk 0:01:21]}  Ng4 {[%clk 0:00:56]} 27. h3 {[%clk 0:01:16]}  Nh6 {[%clk 0:00:48]} 28. e5 {[%clk 0:00:50]}  Nxc5 {[%clk 0:00:38]} 29. Bxc5 {[%clk 0:00:46]}  Qxc5 {[%clk 0:00:39]} 30. Qxb7 {[%clk 0:00:46]}  Nf5 {[%clk 0:00:24]} 31. Qxa6 {[%clk 0:00:37]}  Ne3 {[%clk 0:00:22]} 32. Rxd8+ {[%clk 0:00:34]}  Rxd8 {[%clk 0:00:23]} 33. Rb1 {[%clk 0:00:33]}  Bf8 {[%clk 0:00:17]} 34. Qb7 {[%clk 0:00:30]}  Rd2 {[%clk 0:00:16]} 35. Ne4 {[%clk 0:00:30]}  Qc2 {[%clk 0:00:16]} 36. Nxd2 {[%clk 0:00:30]}  Qxd2 {[%clk 0:00:15]} 37. Qf3 {[%clk 0:00:30]}  Nc4 {[%clk 0:00:15]} 38. Rc1 {[%clk 0:00:25]}  Nb2 {[%clk 0:00:14]} 39. Rc8 {[%clk 0:00:20]}  Nd3 {[%clk 0:00:14]} 40. Kh2 {[%clk 0:00:15]}  Kg7 {[%clk 0:00:13]} 41. Rc7 {[%clk 0:00:10]}  Bc5 {[%clk 0:00:13]} 42. Rd7 {[%clk 0:00:08]}  Be3 {[%clk 0:00:13]} 43. a5 {[%clk 0:00:08]}  Nxe5 {[%clk 0:00:06]} 44. fxe5 {[%clk 0:00:06]}  Qxd7 {[%clk 0:00:06]} 45. Qxe3 {[%clk 0:00:06]}  Qb7 {[%clk 0:00:07]} 46. Qc3 {[%clk 0:00:05]}  Qa6 {[%clk 0:00:06]} 47. Ng1 {[%clk 0:00:05]}  Qb5 {[%clk 0:00:05]} 48. Nf3 {[%clk 0:00:06]} 1-0


[Site "https://www.chess.com"]

[Event "Titled Tuesday Blitz February 15 Early 2022"]
[White "Dronavalli, Harika"]
[Black "Bortnyk, Olexandr"]
[WhiteFideId "5015197"]
[BlackFideId "14120828"]
[WhiteElo "2382"]
[BlackElo "2723"]
[Result "0-1"]
[Round "03"]
[TimeControl "180+1"]
[Date "2022.02.15"]
[WhiteClock "0:00:07"]
[BlackClock "0:00:06"]

1. d4 {[%clk 0:03:00]}  d6 {[%clk 0:02:58]} 2. e4 {[%clk 0:02:58]}  Nf6 {[%clk 0:02:58]} 3. Nc3 {[%clk 0:02:58]}  Nbd7 {[%clk 0:02:56]} 4. Nf3 {[%clk 0:02:57]}  e5 {[%clk 0:02:57]} 5. Be2 {[%clk 0:02:52]}  Be7 {[%clk 0:02:57]} 6. g4 {[%clk 0:02:52]}  h6 {[%clk 0:02:35]} 7. Rg1 {[%clk 0:02:37]}  c6 {[%clk 0:02:34]} 8. Be3 {[%clk 0:02:35]}  b5 {[%clk 0:02:22]} 9. a3 {[%clk 0:02:35]}  Qa5 {[%clk 0:02:12]} 10. b4 {[%clk 0:01:57]}  Qc7 {[%clk 0:02:10]} 11. Qd2 {[%clk 0:01:57]}  a5 {[%clk 0:02:05]} 12. Rd1 {[%clk 0:01:52]}  axb4 {[%clk 0:01:52]} 13. axb4 {[%clk 0:01:52]}  Bb7 {[%clk 0:01:27]} 14. Kf1 {[%clk 0:01:41]}  d5 {[%clk 0:01:11]} 15. dxe5 {[%clk 0:01:36]}  Nxe4 {[%clk 0:01:10]} 16. Nxe4 {[%clk 0:01:35]}  dxe4 {[%clk 0:01:11]} 17. Nd4 {[%clk 0:01:35]}  Nxe5 {[%clk 0:01:05]} 18. Bf4 {[%clk 0:01:32]}  O-O-O {[%clk 0:00:41]} 19. Qc3 {[%clk 0:01:28]}  Bf6 {[%clk 0:00:38]} 20. h4 {[%clk 0:01:19]}  g5 {[%clk 0:00:37]} 21. hxg5 {[%clk 0:01:18]}  hxg5 {[%clk 0:00:38]} 22. Bg3 {[%clk 0:01:18]}  Rd5 {[%clk 0:00:32]} 23. Nf5 {[%clk 0:01:07]}  Rxd1+ {[%clk 0:00:23]} 24. Bxd1 {[%clk 0:01:08]}  Qd8 {[%clk 0:00:24]} 25. Be2 {[%clk 0:00:56]}  Nc4 {[%clk 0:00:23]} 26. Qe1 {[%clk 0:00:42]}  Qd5 {[%clk 0:00:17]} 27. Bxc4 {[%clk 0:00:41]}  Qxc4+ {[%clk 0:00:17]} 28. Kg2 {[%clk 0:00:41]}  Rd8 {[%clk 0:00:09]} 29. Qe3 {[%clk 0:00:38]}  Bd4 {[%clk 0:00:04]} 30. Qxg5 {[%clk 0:00:37]}  c5 {[%clk 0:00:04]} 31. Nd6+ {[%clk 0:00:25]}  Rxd6 {[%clk 0:00:03]} 32. Bxd6 {[%clk 0:00:26]}  e3+ {[%clk 0:00:04]} 33. Kh2 {[%clk 0:00:19]}  exf2 {[%clk 0:00:04]} 34. Rd1 {[%clk 0:00:12]}  f1=Q {[%clk 0:00:04]} 35. Rxf1 {[%clk 0:00:12]}  Qxf1 {[%clk 0:00:04]} 36. Qf5+ {[%clk 0:00:08]}  Qxf5 {[%clk 0:00:04]} 37. gxf5 {[%clk 0:00:08]}  cxb4 {[%clk 0:00:04]} 38. Bxb4 {[%clk 0:00:08]}  Be4 {[%clk 0:00:04]} 39. c3 {[%clk 0:00:07]}  Be5+ {[%clk 0:00:05]} 40. Kg1 {[%clk 0:00:06]}  Bxf5 {[%clk 0:00:06]} 41. Kf2 {[%clk 0:00:07]}  Kd7 {[%clk 0:00:06]} 0-1


[Site "https://www.chess.com"]